bitfinex/quotes_BTCUSD_20251114
["timestamp","ask_amount","ask_price","bid_price","bid_amount"]
[1763132825646,0.20733507,96463.0,96460.0,0.00013573]
[1763132826094,0.10479654,96479.0,96460.0,0.00013573]
[1763132826095,0.323,96478.0,96460.0,0.00013573]
[1763132826488,0.001,96461.0,96460.0,0.00013573]
[1763132827060,0.04341874,96489.0,96460.0,0.00013573]
[1763132827183,0.00972,96480.0,96460.0,0.00013573]
[1763132827379,0.002,96478.0,96460.0,0.00013573]
[1763132827687,0.20732863,96466.0,96460.0,0.00013573]
[1763132828003,0.10479654,96481.0,96460.0,0.00013573]
[1763132828004,0.20733635,96462.0,96460.0,0.00013573]
[1763132828180,0.20733476,96463.0,96460.0,0.00013573]
[1763132828955,0.26953507,96463.0,96460.0,0.00013573]
[1763132829175,0.20733476,96463.0,96460.0,0.00013573]
[1763132829405,0.20733768,96461.0,96460.0,0.00013573]
[1763132829827,0.20733486,96466.0,96460.0,0.00013573]
[1763132829945,0.04523,96479.0,96461.0,0.10479654]
[1763132830156,0.01036376,96490.0,96461.0,0.10479654]
[1763132830157,0.20729255,96482.0,96474.0,0.20730893]
[1763132830397,0.00972,96480.0,96470.0,0.20731741]
[1763132830603,0.323,96488.0,96460.0,0.00013573]
[1763132830805,0.00972,96480.0,96460.0,0.00013573]
[1763132831027,0.20733768,96461.0,96460.0,0.00013573]
[1763132831191,0.20733137,96464.0,96460.0,0.00013573]
[1763132831192,0.20733694,96462.0,96460.0,0.00013573]
[1763132831955,0.04341874,96459.0,96422.0,0.00151513]
[1763132832194,0.20738017,96442.0,96427.0,0.10479654]
[1763132832412,0.01036806,96450.0,96422.0,0.0019682]
[1763132832413,0.04341874,96449.0,96422.0,0.0019682]
[1763132832628,0.20741732,96424.0,96422.0,0.0019682]
[1763132832857,0.20741939,96423.0,96422.0,0.0019682]
[1763132833431,0.05245,96435.0,96422.0,0.0019682]
[1763132833432,0.04341874,96446.0,96422.0,0.0019682]
[1763132833662,0.20741939,96423.0,96422.0,0.0019682]
[1763132833840,0.20740225,96431.0,96422.0,0.0019682]
[1763132834039,0.20741078,96427.0,96426.0,0.07297256]
[1763132834244,0.05245,96446.0,96422.0,0.0019682]
[1763132834245,0.01036699,96460.0,96432.0,0.20739983]
[1763132834450,0.10479654,96449.0,96434.0,0.07297727]
[1763132834659,0.20739033,96437.0,96434.0,0.07297727]
[1763132834870,0.20739358,96435.0,96432.0,0.07297727]
[1763132835121,0.05245,96456.0,96422.0,0.0019682]
[1763132835401,0.20741046,96428.0,96422.0,0.0019682]
[1763132835639,0.20738091,96441.0,96425.0,0.20741482]
[1763132835857,0.2073961,96434.0,96425.0,0.20741482]
[1763132836063,0.20739041,96437.0,96422.0,0.0019682]
[1763132836273,0.121558,96449.0,96422.0,0.0019682]
[1763132836484,0.02008806,96450.0,96422.0,0.0019682]
[1763132836683,0.01036699,96460.0,96422.0,0.0019682]
[1763132836684,0.20737265,96445.0,96435.0,0.10479654]
[1763132836912,0.21708347,96450.0,96436.0,0.10479654]
[1763132837119,0.05245,96459.0,96436.0,0.10479654]
[1763132837324,0.20737986,96442.0,96426.0,0.25339078]
[1763132837530,0.001,96449.0,96435.0,0.10479654]
[1763132837726,0.001,96449.0,96436.0,0.20739143]
[1763132837942,0.20738428,96440.0,96421.0,0.323]
[1763132838145,0.20737105,96446.0,96441.0,0.20737871]
[1763132838345,0.001,96449.0,96436.0,0.2073898]
[1763132838550,0.01497899,96449.0,96430.0,0.20740314]
[1763132838755,0.01290899,96448.0,96436.0,0.10479654]
[1763132839078,0.05245,96459.0,96436.0,0.10479654]
[1763132839079,0.20738726,96438.0,96436.0,0.10479654]
[1763132839467,0.05245,96446.0,96406.0,0.20745453]
[1763132839660,0.57490126,96440.0,96406.0,0.323]
[1763132839862,0.2074185,96424.0,96405.0,0.10479654]
[1763132840064,0.36751629,96440.0,96424.0,0.20741589]
[1763132840065,0.00972,96440.0,96424.0,0.20741589]
[1763132840278,0.45371697,96449.0,96423.0,0.10479654]
[1763132840484,0.02341312,96448.0,96428.0,0.20740791]
[1763132840716,0.02341312,96448.0,96419.0,0.20742671]
[1763132840717,0.07586312,96448.0,96419.0,0.20742671]
[1763132840900,0.20741595,96425.0,96420.0,0.10479654]
[1763132841055,0.05245,96447.0,96420.0,0.10479654]
[1763132841256,0.20741672,96425.0,96422.0,0.03338767]
[1763132841486,0.20741939,96423.0,96422.0,0.0019682]
[1763132841665,0.67863467,96423.0,96422.0,0.0019682]
[1763132841896,0.20747103,96399.0,96370.0,0.09237]
[1763132842070,0.21784447,96400.0,96370.0,0.00013578]
[1763132842071,0.20749255,96389.0,96370.0,0.00013578]
[1763132842268,0.01037344,96400.0,96385.0,0.20750089]
[1763132842495,0.36751629,96410.0,96380.0,0.01037559]
[1763132842870,0.00972,96410.0,96402.0,0.20746327]
[1763132843075,0.37788758,96420.0,96403.0,0.20746242]
[1763132843232,0.20745066,96409.0,96403.0,0.20746242]
[1763132843426,0.20744648,96411.0,96406.0,0.20745488]
[1763132843634,0.20743925,96414.0,96406.0,0.20745488]
[1763132843635,0.05,96419.0,96406.0,0.20745516]
[1763132844022,0.20743443,96417.0,96412.0,0.2074418]
[1763132844225,0.20742446,96421.0,96411.0,0.2074452]
[1763132844427,0.20743853,96415.0,96409.0,0.20744801]
[1763132844624,0.20743853,96415.0,96406.0,0.00013578]
[1763132844625,0.20745315,96408.0,96406.0,0.00013578]
[1763132845061,0.36641874,96407.0,96406.0,0.00013578]
[1763132845670,0.001,96410.0,96406.0,0.00013578]
[1763132845879,0.20745314,96408.0,96406.0,0.00013578]
[1763132846073,0.20845314,96408.0,96406.0,0.00013578]
[1763132846474,0.20745314,96408.0,96406.0,0.00013578]
[1763132847654,0.04341874,96407.0,96406.0,0.00013578]
[1763132847875,0.36641874,96407.0,96406.0,0.00013578]
[1763132848660,0.36391874,96407.0,96406.0,0.00013578]
[1763132849196,0.20755284,96361.0,96360.0,0.0004]
[1763132849398,0.01037452,96390.0,96360.0,0.00053587]
[1763132849399,0.20755134,96362.0,96360.0,0.00053587]
[1763132849558,0.36751629,96380.0,96360.0,0.00053587]
[1763132849559,0.20752167,96376.0,96360.0,0.20808944]
[1763132849757,0.20754732,96364.0,96361.0,0.04156477]
[1763132849961,0.20754732,96364.0,96360.0,0.00053587]
[1763132849962,0.20755284,96361.0,96360.0,0.00053587]
[1763132852352,0.20855284,96361.0,96360.0,0.00053587]
[1763132852980,0.57497158,96361.0,96360.0,0.00053587]
[1763132853177,0.67864096,96361.0,96360.0,0.00053587]
[1763132853377,0.57497158,96361.0,96360.0,0.00053587]
[1763132853582,0.53155284,96361.0,96360.0,0.00221016]
[1763132853798,0.20855284,96361.0,96360.0,0.00221016]
[1763132853997,0.25197158,96361.0,96360.0,0.00221016]
[1763132854420,0.25097158,96361.0,96360.0,0.00221016]
[1763132854761,0.25197158,96361.0,96360.0,0.00221016]
[1763132855163,0.20755284,96361.0,96360.0,0.00221016]
[1763132855370,0.04523,96362.0,96360.0,0.00221016]
[1763132855607,0.20755284,96361.0,96360.0,0.00053587]
[1763132855819,0.20855284,96361.0,96360.0,0.00053587]
[1763132856231,0.001,96361.0,96360.0,0.00053587]
[1763132856435,0.20755143,96362.0,96360.0,0.00053587]
[1763132857774,0.20855143,96362.0,96360.0,0.00053587]
[1763132858011,0.04341874,96361.0,96360.0,0.00053587]
[1763132858577,0.36641874,96361.0,96360.0,0.00053587]
[1763132858776,0.04341874,96361.0,96360.0,0.00053587]
[1763132858985,0.20755143,96362.0,96360.0,0.00053587]
[1763132859186,0.04341874,96361.0,96360.0,0.00053587]
[1763132859389,0.36741874,96361.0,96360.0,0.00053587]
[1763132859795,0.20759593,96341.0,96340.0,0.0004]
[1763132859972,0.20759593,96341.0,96340.0,0.00085352]
[1763132859973,0.31239247,96341.0,96340.0,0.00085352]
[1763132860852,0.00972,96350.0,96340.0,0.2084514]
[1763132861066,0.04341874,96353.0,96340.0,0.00085352]
[1763132861279,0.02594572,96355.0,96349.0,0.00197157]
[1763132861446,0.02594572,96355.0,96341.0,0.04160593]
[1763132861447,0.01165245,96359.0,96340.0,0.00085352]
[1763132861664,0.20759593,96341.0,96340.0,0.00085352]
[1763132861869,0.20859593,96341.0,96340.0,0.00085352]
[1763132862089,0.001,96341.0,96340.0,0.00085352]
[1763132862335,0.20757368,96352.0,96340.0,0.00085352]
[1763132862336,0.04531,96408.0,96360.0,0.01037775]
[1763132862545,0.04531,96408.0,96381.0,0.323]
[1763132862714,0.01892098,96407.0,96397.0,0.20747507]
[1763132862921,0.01892098,96407.0,96382.0,0.087171]
[1763132863266,0.01892098,96407.0,96379.0,0.323]
[1763132863267,0.01892098,96407.0,96404.0,0.20745926]
[1763132864254,0.20743436,96417.0,96400.0,0.01037344]
[1763132864435,0.20744864,96410.0,96405.0,0.10479654]
[1763132864651,0.2074555,96407.0,96391.0,0.53048609]
[1763132864847,0.05012,96429.0,96391.0,0.53048609]
[1763132864848,0.20746113,96404.0,96391.0,0.323]
[1763132865048,0.05012,96429.0,96390.0,0.01037452]
[1763132865049,0.02009129,96420.0,96390.0,0.01037452]
[1763132865249,0.00931874,96419.0,96395.0,0.20747758]
[1763132865482,0.20746494,96402.0,96395.0,0.20747952]
[1763132865682,0.06461112,96419.0,96393.0,0.20748234]
[1763132865683,0.02593334,96401.0,96393.0,0.20748234]
[1763132865909,0.20746594,96402.0,96388.0,0.10479654]
[1763132866103,0.04341874,96417.0,96394.0,0.20748179]
[1763132866104,0.22397524,96401.0,96394.0,0.20748179]
[1763132866303,0.20747205,96399.0,96389.0,0.20749255]
[1763132866480,0.20746974,96400.0,96394.0,0.20748093]
[1763132866700,0.0173169,96400.0,96394.0,0.20748093]
[1763132866885,0.20748093,96395.0,96388.0,0.10479654]
[1763132867121,0.20748036,96395.0,96388.0,0.10479654]
[1763132867308,0.20748036,96395.0,96358.0,0.42658491]
[1763132867309,0.10479654,96392.0,96349.0,0.04753]
[1763132867510,0.05657,96370.0,96349.0,0.02564]
[1763132867684,0.01334587,96369.0,96358.0,0.10479654]
[1763132867885,0.0495,96386.0,96359.0,0.20755715]
[1763132867886,0.20750486,96384.0,96359.0,0.20755715]
[1763132868095,0.0495,96386.0,96358.0,0.10479654]
[1763132868096,0.01662637,96383.0,96360.0,0.01037775]
[1763132868498,0.01602535,96389.0,96360.0,0.01037775]
[1763132868722,0.01602535,96389.0,96376.0,0.10479654]
[1763132868939,0.62789943,96420.0,96378.0,0.10479654]
[1763132868940,0.01010924,96396.0,96378.0,0.10479654]
[1763132869144,0.01292624,96402.0,96395.0,0.00072886]
[1763132869385,0.01292624,96402.0,96379.0,0.20751408]
[1763132869598,0.05987236,96410.0,96402.0,0.20746275]
[1763132869599,0.0495,96410.0,96402.0,0.20746275]
[1763132869834,0.01037129,96420.0,96390.0,0.01037452]
[1763132869835,0.02156547,96414.0,96390.0,0.01037452]
[1763132870058,0.11516675,96430.0,96400.0,0.20746849]
[1763132870059,0.01498274,96419.0,96400.0,0.20746849]
[1763132870266,0.01261949,96418.0,96395.0,0.10479654]
[1763132870464,0.01311899,96417.0,96395.0,0.10479654]
[1763132870897,0.00013564,96419.0,96417.0,0.20743079]
[1763132871171,0.00013564,96419.0,96410.0,0.10479654]
[1763132871372,0.00013564,96419.0,96396.0,0.323]
[1763132871504,0.00013564,96419.0,96406.0,0.20745566]
[1763132871704,0.00013564,96419.0,96411.0,0.2074452]
[1763132871907,0.00013564,96419.0,96410.0,0.10479654]
[1763132872111,0.20744511,96412.0,96410.0,0.10479654]
[1763132872981,0.20744308,96414.0,96410.0,0.10479654]
[1763132873233,0.00013564,96419.0,96410.0,0.10479654]
[1763132873445,0.02606413,96419.0,96396.0,0.09578]
[1763132873617,0.20744422,96412.0,96396.0,0.09578]
[1763132873825,0.00013564,96419.0,96409.0,0.20744824]
[1763132874027,0.00013564,96419.0,96395.0,0.10479654]
[1763132874381,0.04963564,96419.0,96395.0,0.10479654]
[1763132874741,0.01961025,96418.0,96401.0,0.00056686]
[1763132874929,0.00013564,96419.0,96410.0,0.10479654]
[1763132875087,0.00013564,96419.0,96417.0,0.20743092]
[1763132876335,0.00013564,96419.0,96386.0,0.04753]
[1763132876542,0.00013564,96419.0,96410.0,0.10479654]
[1763132876734,0.00013564,96419.0,96417.0,0.20743087]
[1763132877480,0.00013564,96419.0,96410.0,0.10479654]
[1763132877828,0.20743554,96416.0,96410.0,0.10479654]
[1763132878032,0.00013564,96419.0,96410.0,0.10479654]
[1763132878232,0.00013564,96419.0,96417.0,0.20743193]
[1763132878432,0.00013564,96419.0,96418.0,0.04753]
[1763132878641,0.00013564,96419.0,96413.0,0.04753]
[1763132879023,0.00013564,96419.0,96414.0,0.04555512]
[1763132879225,0.00013564,96419.0,96413.0,0.04753]
[1763132879226,0.00013564,96419.0,96418.0,0.20743014]
[1763132880096,0.00013564,96419.0,96414.0,0.20743831]
[1763132880416,0.00013564,96419.0,96418.0,0.20743014]
[1763132881014,0.00013564,96419.0,96417.0,0.20743208]
[1763132881015,0.00013564,96419.0,96413.0,0.00024291]
[1763132881016,0.04963564,96419.0,96413.0,0.00024291]
[1763132881219,0.20743801,96415.0,96413.0,0.00024291]
[1763132881421,0.01750284,96414.0,96413.0,0.00024291]
[1763132881662,0.16590589,96414.0,96413.0,0.00024291]
[1763132881864,0.00049,96414.0,96413.0,0.00024291]
[1763132882386,0.00013564,96419.0,96413.0,0.00024291]
[1763132882591,0.00013564,96419.0,96415.0,0.20743587]
[1763132882751,0.00013564,96419.0,96417.0,0.2074313]
[1763132882925,0.00013564,96419.0,96413.0,0.00024291]
[1763132883133,0.00013564,96419.0,96415.0,0.20743449]
[1763132883331,0.00013564,96419.0,96417.0,0.20743203]
[1763132883511,0.00013564,96419.0,96418.0,0.07273404]
[1763132883913,0.00013564,96419.0,96418.0,0.39573404]
[1763132884432,0.00113564,96419.0,96418.0,0.39573404]
[1763132884773,0.00013564,96419.0,96418.0,0.39573404]
[1763132884981,0.00013564,96419.0,96417.0,0.20743203]
[1763132885280,0.00013564,96419.0,96418.0,0.42297]
[1763132885728,0.00013564,96419.0,96418.0,0.323]
[1763132886039,0.00013564,96419.0,96418.0,0.324]
[1763132887241,0.00013564,96419.0,96418.0,0.323]
[1763132887460,0.00013564,96419.0,96418.0,0.001]
[1763132888100,0.00013564,96419.0,96417.0,0.2074317]
[1763132888350,0.00013564,96419.0,96413.0,0.00024291]
[1763132888521,0.00013564,96419.0,96418.0,0.001]
[1763132888750,0.00013564,96419.0,96418.0,0.20843014]
[1763132889047,0.00013564,96419.0,96418.0,0.25952032]
[1763132889388,0.00013564,96419.0,96418.0,0.58252032]
[1763132890432,1e-08,96419.0,96418.0,0.74143706]
[1763132890758,1e-08,96419.0,96418.0,0.86792106]
[1763132890960,1e-08,96419.0,96418.0,0.84659806]
[1763132891167,1e-08,96419.0,96418.0,0.62693906]
[1763132891367,1e-08,96419.0,96418.0,0.58352032]
[1763132891566,1e-08,96419.0,96418.0,0.87509018]
[1763132891949,1e-08,96419.0,96418.0,0.68456032]
[1763132892344,1e-08,96419.0,96418.0,0.58352032]
[1763132892699,1e-08,96419.0,96418.0,0.53143014]
[1763132893765,1e-08,96419.0,96418.0,0.53043014]
[1763132894583,1e-08,96419.0,96418.0,0.001]
[1763132895155,1e-08,96419.0,96417.0,0.20743182]
[1763132895358,1e-08,96419.0,96418.0,0.001]
[1763132895594,1e-08,96419.0,96418.0,0.42207]
[1763132895870,1e-08,96419.0,96418.0,0.324]
[1763132896640,1e-08,96419.0,96418.0,0.73084274]
[1763132896852,0.20733326,96464.0,96460.0,0.20733904]
[1763132897121,0.20733326,96464.0,96454.0,0.20735175]
[1763132897122,0.00196789,96462.0,96454.0,0.20735175]
[1763132897416,0.00196789,96462.0,96455.0,0.20734924]
[1763132897657,0.00972,96460.0,96442.0,0.323]
[1763132897900,0.00196789,96462.0,96442.0,0.323]
[1763132897901,0.02788483,96462.0,96455.0,0.20734954]
[1763132898146,0.02788483,96462.0,96444.0,0.20737224]
[1763132898147,0.00196789,96462.0,96460.0,0.20733847]
[1763132898436,0.00196789,96462.0,96441.0,0.10479654]
[1763132898437,0.00196789,96462.0,96441.0,0.42779654]
[1763132898652,0.00196789,96462.0,96442.0,0.323]
[1763132898863,0.20735289,96454.0,96450.0,0.20735963]
[1763132899087,0.20734654,96457.0,96449.0,0.2073617]
[1763132899345,0.00196789,96462.0,96451.0,0.20735897]
[1763132899346,0.20735354,96454.0,96451.0,0.20735897]
[1763132899562,0.00196789,96462.0,96443.0,0.04833757]
[1763132899813,0.20735613,96453.0,96449.0,0.20736265]
[1763132900037,0.001,96460.0,96444.0,0.03883343]
[1763132900277,0.20735625,96453.0,96448.0,0.20736396]
[1763132900500,0.00196789,96462.0,96441.0,0.10479654]
[1763132900755,0.20735127,96455.0,96441.0,0.10479654]
[1763132900964,0.2073575,96452.0,96449.0,0.20736227]
[1763132901225,0.2073575,96452.0,96441.0,0.10479654]
[1763132901226,0.20735131,96455.0,96450.0,0.20736041]
[1763132901449,0.00196789,96462.0,96441.0,0.10479654]
[1763132901678,0.00196789,96462.0,96442.0,0.01603757]
[1763132901911,0.20735199,96455.0,96442.0,0.01603757]
[1763132902134,0.00196789,96462.0,96442.0,0.01603757]
[1763132902378,0.00196789,96462.0,96455.0,0.20735032]
[1763132902602,0.00196789,96462.0,96460.0,0.20733929]
[1763132902863,0.00196789,96462.0,96461.0,0.02991]
[1763132903111,0.00196789,96462.0,96461.0,0.10104343]
[1763132903335,0.00196789,96462.0,96461.0,0.52211343]
[1763132903617,0.00196789,96462.0,96461.0,0.45098]
[1763132903846,0.00196789,96462.0,96461.0,0.20733768]
[1763132904072,0.00196789,96462.0,96461.0,0.23800768]
[1763132904966,0.20930455,96462.0,96461.0,0.001]
[1763132906037,0.20735778,96452.0,96439.0,0.20738392]
[1763132906314,0.20735778,96452.0,96430.0,0.01037021]
[1763132906315,0.01036699,96460.0,96430.0,0.01037021]
[1763132906543,0.02591774,96459.0,96430.0,0.01037021]
[1763132906788,0.20735211,96455.0,96441.0,0.10479654]
[1763132907016,0.20735211,96455.0,96431.0,0.09807]
[1763132907017,0.02324212,96454.0,96434.0,0.20739423]
[1763132907251,0.01036699,96460.0,96429.0,0.323]
[1763132907252,0.02591774,96459.0,96429.0,0.323]
[1763132907486,0.02591774,96459.0,96413.0,0.00024291]
[1763132907487,0.04573,96435.0,96418.0,0.20742942]
[1763132907721,0.04573,96435.0,96413.0,0.00024291]
[1763132907992,0.04573,96435.0,96415.0,0.10479654]
[1763132908246,0.00972,96440.0,96415.0,0.10479654]
[1763132908470,0.04573,96441.0,96415.0,0.10479654]
[1763132908717,0.20742284,96422.0,96415.0,0.20743634]
[1763132908945,0.14821528,96438.0,96416.0,0.20743351]
[1763132908946,0.20742538,96421.0,96416.0,0.20743351]
[1763132909179,0.14821528,96438.0,96413.0,0.00024291]
[1763132909180,0.09242,96437.0,96413.0,0.20768312]
[1763132909410,0.09242,96437.0,96413.0,0.00024291]
[1763132909411,0.04573,96414.0,96413.0,0.00024291]
[1763132909890,0.092,96423.0,96413.0,0.00024291]
[1763132909891,0.04573,96425.0,96413.0,0.00024291]
[1763132910177,0.04573,96425.0,96414.0,0.20743875]
[1763132910408,0.04573,96425.0,96413.0,0.00024291]
[1763132910409,0.20743794,96415.0,96413.0,0.00024291]
[1763132911607,0.20743665,96419.0,96413.0,0.00024291]
[1763132911850,0.02915882,96462.0,96413.0,0.00024291]
[1763132911851,0.323,96429.0,96413.0,0.00024291]
[1763132912074,0.20743744,96415.0,96413.0,0.00024291]
[1763132913168,0.04433874,96414.0,96413.0,0.00024291]
[1763132913583,0.20743875,96414.0,96413.0,0.00024291]
[1763132914350,0.20835875,96414.0,96413.0,0.00024291]
[1763132914745,0.20742799,96419.0,96414.0,0.20743733]
[1763132914908,0.61608754,96430.0,96414.0,0.20743804]
[1763132915147,0.323,96437.0,96421.0,0.2074222]
[1763132915337,0.20739072,96437.0,96421.0,0.02074222]
[1763132915550,0.01873049,96436.0,96423.0,0.10479654]
[1763132915744,0.46962982,96450.0,96413.0,0.00024291]
[1763132915745,0.45926176,96440.0,96413.0,0.00024291]
[1763132915972,0.20740725,96429.0,96419.0,0.20742706]
[1763132916189,0.37744176,96440.0,96423.0,0.10479654]
[1763132916415,0.01036806,96450.0,96423.0,0.10479654]
[1763132916416,0.20740091,96432.0,96428.0,0.20740836]
[1763132916685,0.20739565,96435.0,96423.0,0.11527619]
[1763132916896,0.20739419,96435.0,96426.0,0.20740648]
[1763132917090,0.02110769,96434.0,96413.0,0.00024291]
[1763132917296,0.01841773,96440.0,96433.0,0.20739788]
[1763132917467,0.01841773,96440.0,96424.0,0.10479654]
[1763132917468,0.20739233,96436.0,96431.0,0.20740082]
[1763132917726,0.20740033,96432.0,96427.0,0.20740994]
[1763132917927,0.04573,96441.0,96433.0,0.20739592]
[1763132918133,0.04573,96441.0,96424.0,0.32269127]
[1763132918310,0.20737381,96445.0,96424.0,0.10479654]
[1763132918517,0.001,96440.0,96432.0,0.20739839]
[1763132918732,0.001,96440.0,96424.0,0.10479654]
[1763132918733,0.001,96440.0,96410.0,0.01037236]
[1763132918990,0.2073991,96433.0,96410.0,0.33337236]
[1763132919193,0.04195,96439.0,96410.0,0.33337236]
[1763132919194,0.20740728,96429.0,96414.0,0.05345218]
[1763132919428,0.023295,96428.0,96422.0,0.20742122]
[1763132919677,0.20743434,96417.0,96403.0,0.10479654]
[1763132919899,0.20743875,96414.0,96403.0,0.10479654]
[1763132920123,0.20837875,96414.0,96400.0,0.01037344]
[1763132920609,0.20837875,96414.0,96390.0,0.08335179]
[1763132920850,0.30176154,96422.0,96390.0,0.08335179]
[1763132921094,0.09528,96434.0,96414.0,0.10479654]
[1763132921313,0.3780909,96440.0,96435.0,0.2073918]
[1763132921314,0.01036914,96440.0,96435.0,0.2073918]
[1763132921518,0.20737831,96443.0,96437.0,0.20738902]
[1763132921720,0.37808982,96450.0,96441.0,0.20737889]
[1763132921928,0.00045279,96450.0,96444.0,0.20737237]
[1763132922133,0.00045279,96450.0,96420.0,0.01037129]
[1763132922134,0.00045279,96450.0,96448.0,0.20736461]
[1763132923156,0.00045279,96450.0,96447.0,0.20736685]
[1763132923360,0.00045279,96450.0,96448.0,0.20736427]
[1763132923569,0.00045279,96450.0,96436.0,0.10479654]
[1763132923784,0.00045279,96450.0,96449.0,0.25257347]
[1763132925380,0.00045279,96450.0,96449.0,0.04521]
[1763132925587,0.00151482,96462.0,96449.0,0.04521]
[1763132925588,0.00151482,96462.0,96461.0,0.53033768]
[1763132925789,0.0016506,96462.0,96461.0,0.63513422]
[1763132925945,0.0016506,96462.0,96461.0,0.93471684]
[1763132926145,0.01056054,96520.0,96508.0,0.20723547]
[1763132926457,0.01056054,96520.0,96470.0,0.01036591]
[1763132926458,0.03601027,96519.0,96493.0,0.323]
[1763132926705,0.00033578,96520.0,96491.0,0.323]
[1763132926706,0.02565685,96518.0,96513.0,0.10479654]
[1763132926906,0.00033578,96520.0,96513.0,0.10479654]
[1763132926907,0.00033578,96520.0,96513.0,0.31202036]
[1763132927180,0.00033578,96520.0,96518.0,0.20721408]
[1763132927800,0.00033578,96520.0,96517.0,0.23817649]
[1763132928037,0.00033578,96520.0,96519.0,0.09611]
[1763132928247,0.00133578,96520.0,96519.0,0.53108874]
[1763132928452,0.00133578,96520.0,96519.0,0.43497874]
[1763132928658,0.00033578,96520.0,96519.0,0.5116458]
[1763132929066,0.0002,96550.0,96549.0,0.5301487]
[1763132929288,0.00065235,96550.0,96549.0,0.5793287]
[1763132929919,0.00065235,96550.0,96549.0,0.37218]
[1763132931244,0.00065235,96550.0,96549.0,0.37318]
[1763132931452,0.00065235,96550.0,96549.0,0.38368394]
[1763132931890,0.00065235,96550.0,96549.0,0.001]
[1763132932125,0.00065235,96550.0,96520.0,0.01036054]
[1763132932126,0.02072967,96550.0,96517.0,0.23817632]
[1763132932338,0.20719004,96530.0,96517.0,0.03096]
[1763132932546,0.20717509,96537.0,96528.0,0.10479654]
[1763132932755,0.20717509,96537.0,96502.0,0.06852]
[1763132932756,0.2072068,96522.0,96512.0,0.20722715]
[1763132932966,0.02589707,96536.0,96490.0,0.01036376]
[1763132932967,0.02590109,96521.0,96490.0,0.01036376]
[1763132933187,0.02590109,96521.0,96497.0,0.10479654]
[1763132933188,0.20722602,96513.0,96497.0,0.10479654]
[1763132933420,0.3780823,96520.0,96497.0,0.10479654]
[1763132933421,0.20723443,96510.0,96497.0,0.10479654]
[1763132933633,0.02194953,96509.0,96497.0,0.10479654]
[1763132933836,0.02194953,96509.0,96493.0,0.20726729]
[1763132933837,0.20725569,96500.0,96494.0,0.10479654]
[1763132934045,0.01036162,96510.0,96482.0,0.20729162]
[1763132934293,0.22480104,96509.0,96494.0,0.10493232]
[1763132934500,0.01036162,96510.0,96494.0,0.10493232]
[1763132934501,0.20726253,96496.0,96494.0,0.00013578]
[1763132934707,0.20726199,96497.0,96494.0,0.00013578]
[1763132935114,0.04341874,96518.0,96494.0,0.00113578]
[1763132935324,0.20725318,96501.0,96495.0,0.20726462]
[1763132935538,0.20724623,96504.0,96497.0,0.20726031]
[1763132935772,0.20725169,96502.0,96494.0,0.00013578]
[1763132935972,0.20721523,96518.0,96500.0,0.20725323]
[1763132936178,0.3780823,96520.0,96494.0,0.00113578]
[1763132936179,0.20724778,96503.0,96497.0,0.31205669]
[1763132936379,0.20724778,96503.0,96494.0,0.20840173]
[1763132936380,0.18091654,96519.0,96494.0,0.00113578]
[1763132936506,0.20724509,96505.0,96495.0,0.02084108]
[1763132936712,0.18091654,96519.0,96494.0,0.00113578]
[1763132936713,0.20722479,96514.0,96494.0,0.00113578]
[1763132936935,0.01036054,96520.0,96498.0,0.10479654]
[1763132937134,0.20724622,96504.0,96499.0,0.02020423]
[1763132937373,0.07612,96519.0,96494.0,0.00013578]
[1763132937707,0.20722353,96515.0,96508.0,0.20723562]
[1763132937909,0.20722353,96515.0,96507.0,0.20723788]
[1763132938114,0.20722562,96514.0,96505.0,0.2072411]
[1763132938318,0.04341874,96524.0,96501.0,0.10479654]
[1763132938522,0.07612,96516.0,96482.0,0.10479654]
[1763132938727,0.01270274,96519.0,96497.0,0.10479654]
[1763132938928,0.20724986,96502.0,96498.0,0.21775141]
[1763132939136,0.20724986,96502.0,96497.0,0.10479654]
[1763132939137,0.20725818,96498.0,96497.0,0.10479654]
[1763132939341,0.001,96515.0,96497.0,0.10479654]
[1763132939831,0.20724231,96506.0,96501.0,0.2072505]
[1763132940239,0.001,96515.0,96497.0,0.10479654]
[1763132940450,0.00887099,96524.0,96498.0,0.11528977]
[1763132940695,0.20726455,96496.0,96487.0,0.323]
[1763132940907,0.20726455,96496.0,96482.0,0.10479654]
[1763132940908,0.20726371,96496.0,96482.0,0.10479654]
[1763132941144,0.04587,96495.0,96479.0,0.10479654]
[1763132941350,0.25307562,96523.0,96495.0,0.10479654]
[1763132941550,0.25307562,96523.0,96513.0,0.2072249]
[1763132941551,0.20721224,96520.0,96513.0,0.2072249]
[1763132941759,0.20722792,96513.0,96506.0,0.20724085]
[1763132942027,0.20720664,96522.0,96496.0,0.02091361]
[1763132942247,0.20722816,96512.0,96506.0,0.20724001]
[1763132942468,0.01035947,96530.0,96510.0,0.10479654]
[1763132942686,0.001,96523.0,96521.0,0.20720748]
[1763132942890,0.001,96523.0,96520.0,0.24754235]
[1763132943123,0.00161709,96522.0,96520.0,0.20720942]
[1763132943332,0.001,96523.0,96520.0,0.20720942]
[1763132943536,0.001,96523.0,96521.0,0.20720859]
[1763132943740,0.001,96523.0,96520.0,0.20721014]
[1763132943946,0.20719901,96526.0,96520.0,0.20721014]
[1763132944148,0.20719901,96526.0,96513.0,0.04429]
[1763132944354,0.20719901,96526.0,96520.0,0.20720961]
[1763132944562,0.20719579,96528.0,96503.0,0.20724661]
[1763132944563,0.02590002,96525.0,96503.0,0.20724661]
[1763132944813,0.37808123,96530.0,96475.0,0.09384]
[1763132944814,0.00972,96510.0,96475.0,0.09384]
[1763132945027,0.3780823,96520.0,96482.0,0.20729214]
[1763132945028,0.20726248,96496.0,96482.0,0.20729214]
[1763132945235,0.20726248,96496.0,96463.0,0.09384]
[1763132945670,0.20726248,96496.0,96462.0,0.20733413]
[1763132945884,0.20726248,96496.0,96479.0,0.20729802]
[1763132946100,0.20726248,96496.0,96470.0,0.01036591]
[1763132946101,0.20726247,96496.0,96482.0,0.20729102]
[1763132946311,0.12043874,96512.0,96471.0,0.10479654]
[1763132946312,0.07702,96528.0,96501.0,0.20725029]
[1763132946517,0.3780823,96520.0,96495.0,0.10479654]
[1763132946719,0.3780823,96520.0,96505.0,0.20724138]
[1763132946720,0.02008054,96520.0,96505.0,0.20724138]
[1763132946853,0.20722379,96515.0,96506.0,0.20723913]
[1763132947072,0.02008054,96520.0,96511.0,0.20722884]
[1763132947073,0.02590297,96514.0,96511.0,0.20722884]
[1763132947269,0.01725728,96516.0,96497.0,0.09384]
[1763132947468,0.01748212,96519.0,96497.0,0.09384]
[1763132947672,0.01076024,96518.0,96498.0,0.01987723]
[1763132947857,0.02057774,96528.0,96507.0,0.20723851]
[1763132948074,0.02057774,96528.0,96497.0,0.09384]
[1763132948075,0.02057774,96528.0,96510.0,0.10479654]
[1763132948273,0.001,96515.0,96498.0,0.323]
[1763132948479,0.001,96515.0,96506.0,0.20723893]